Cogmind - Beta 13 @@@ ROGUE MODE // 2024.04.30 @ 14:21:34 Player: Exceptionally Mediocre Result: Destroyed by G-47 Trooper with Particle Gun Performance ------------- Evolutions (2) 1000 Regions Visited (4) 800 Robots Destroyed (107) 535 Value Destroyed (2400) 2400 Prototype IDs (3) 60 Alien Tech Used (0) 0 Bonus (0) 0 TOTAL SCORE: 4795 Bonus ------- None Cogmind --------- Core Integrity 0/550 Matter 208/300 Energy 100/100 System Corruption 5% Temperature Warm (157) Movement Core (1550) Ox30 Location -8/Materials Parts ------- > --- POWER (1) -------- (None) > --- PROPULSION (4) --- (None) > --- UTILITY (4) ------ Huge Storage Unit Targeting Computer Improved Weapon Shielding Light Armor Plating > --- WEAPON (2) ------- Precision Beam Rifle Assault Cannon > --- INVENTORY (25) --- Improved Heat Sink High-capacity Matter Pod (200) Weight Redist. System Advanced Weight Redist. System Improved Signal Interpreter Advanced Targeting Computer Core Shielding Hacking Suite System Shield Precision Beam Rifle Improved Assault Rifle Improved Assault Rifle Improved Assault Rifle Gauss Rifle Rocket Launcher Axe Axe Makeshift Spear Peak State ------------ > --- POWER ------------ Light Nuclear Core > --- PROPULSION ------- Light Treads Light Treads Armored Treads Armored Treads > --- UTILITY ---------- Cooling System Huge Storage Unit Targeting Computer Makeshift Light Armor Plating > --- WEAPON ----------- Precision Beam Rifle Assault Cannon > --- INVENTORY -------- Light Nuclear Core Light Treads Improved Heat Sink High-capacity Matter Pod Weight Redist. System Advanced Weight Redist. System Improved Signal Interpreter Advanced Targeting Computer Improved Weapon Shielding Light Armor Plating Light Armor Plating Hardened Light Armor Plating Hacking Suite System Shield Heavy Assault Rifle Autogun Improved Assault Rifle Improved Assault Rifle Minigun Rocket Launcher Axe Axe Axe Makeshift Spear [Rating: 32] Favorites ----------- Power Improved Ion Engine Engine Improved Ion Engine Power Core Light Nuclear Core Propulsion Light Treads Treads Light Treads Hover Unit Combat Airjet Utility Huge Storage Unit Device Improved Heat Sink Storage Huge Storage Unit Processor Targeting Computer Protection Makeshift Light Armor Plating Weapon Autogun Energy Gun Medium Laser Ballistic Gun Autogun Ballistic Cannon Assault Cannon Launcher Rocket Launcher Special Weapon Mining Laser Impact Weapon Flail Slashing Weapon Axe Piercing Weapon Makeshift Spear Build | -11 -10 -10 -10 -8 ------- Run | Yrd Mat Min Sub Mat Slots Evolved 4 | . . . . 4 Power . | . . . . . Propulsion 2 | . . . . 2 Utility 2 | . . . . 2 Weapon . | . . . . . Parts Attached 102 | 8 16 6 19 53 Power 12 | 1 2 . 1 8 Engine 5 | 1 2 . 1 1 Core 7 | . . . . 7 Reactor . | . . . . . Propulsion 31 | 2 1 4 1 23 Treads 29 | 2 1 2 1 23 Leg . | . . . . . Wheel . | . . . . . Hover 2 | . . 2 . . Flight . | . . . . . Utility 20 | 2 3 . 4 11 Device 5 | 1 1 . 2 1 Storage 3 | 1 2 . . . Processor 2 | . . . . 2 Hackware . | . . . . . Protection 10 | . . . 2 8 Artifact . | . . . . . Weapon 39 | 3 10 2 13 11 Energy Gun 11 | 3 4 . . 4 Energy Cannon . | . . . . . Ballistic Gun 15 | . 3 1 7 4 Ballistic Cannon 1 | . . . . 1 Launcher 3 | . 1 1 1 . Special Weapon 2 | . 2 . . . Impact Weapon 3 | . . . 3 . Slashing Weapon 2 | . . . . 2 Piercing Weapon 2 | . . . 2 . Special Melee Weapon . | . . . . . Unidentified Prototypes 3 | . . . . 3 Parts Lost 39 | . 4 2 4 29 Power 9 | . 1 . 1 7 Propulsion 17 | . 1 2 . 14 Utility 8 | . 1 . 1 6 Weapon 5 | . 1 . 2 2 Highest Loss Streak 12 | . 1 1 1 12 To Critical Strikes . | . . . . . Average Slot Usage (%) 96 | . 98 98 100 87 Engine 11 | . 14 14 14 2 Core 1 | . . . . 5 Treads 27 | . 27 26 28 28 Device 9 | . 13 14 5 3 Storage 12 | . 14 14 14 9 Processor 1 | . . . . 8 Protection 4 | . . . 8 13 Energy Gun 3 | . 11 . . 2 Ballistic Gun 18 | . 16 27 18 5 Impact Weapon 1 | . . . 5 . Naked Turns . | . . . . . Heaviest Build 100 | 13 93 95 98 100 Greatest Support 86 | 40 40 40 40 86 Greatest Overweight (x) 30 | . 4 4 2 30 Average Overweight (x) 1 | . 1 2 2 1 Largest Inventory Capacity 25 | 8 25 25 25 25 Average Capacity 24 | 7 24 25 25 25 Most Carried 25 | 5 25 25 25 25 Average Carried 22 | 2 18 24 24 21 Final Capacity 25 | 8 25 25 25 25 Final Carried 25 | 5 25 25 25 18 Class Distribution -------------------- 97% | Mutant Dominant Class ---------------- Mutant | -10/Materials Mutant | -10/Mines Mutant | -10/Subcaves Mutant | -8/Materials Resources | -11 -10 -10 -10 -8 ----------- Run | Yrd Mat Min Sub Mat Matter Collected 2658 | 280 571 254 382 1171 Remotely . | . . . . . Salvage Created 3612 | 168 785 221 338 2100 Parts 223 | 13 59 21 26 104 Haulers Intercepted 7 | . 2 . . 5 Recyclers Shooed 7 | . 1 . . 6 Parts Field Recycled . | . . . . . Retrieved Matter . | . . . . . Parts Self-Destructed 9 | . . . 9 . Prevented . | . . . . . Kills | -11 -10 -10 -10 -8 ------- Run | Yrd Mat Min Sub Mat Combat Hostiles Destroyed 66 | . 13 11 11 31 Melee 8 | . . . . 8 Guns 42 | . 10 7 9 16 Cannons 7 | . . . . 7 AOE 9 | . 3 4 2 . Classes Destroyed 14 | 3 6 2 1 2 Worker 12 | 2 5 1 . 4 Builder 5 | . 1 . . 4 Tunneler 5 | 2 2 1 . . Hauler 7 | . 2 . . 5 Recycler 9 | 1 1 . . 7 Operator 3 | . 3 . . . Watcher 6 | . 3 . . 3 Swarmer 17 | . 6 2 3 6 Grunt 24 | . 7 1 . 16 Sentry 6 | . . 2 . 4 Specialist 2 | . . . . 2 Hunter 3 | . . . . 3 Subdweller 8 | . . . 8 . Assembled 6 | . . 6 . . Best Kill Streak 8 | 3 3 6 3 8 Combat Bots Only 7 | . 3 6 3 7 Max Kills in Single Turn 2 | 1 2 2 2 2 Gunslinging . | . . . . . Exploded 2 | . 2 2 2 . Melee 1 | . . . . 1 Uniques/NPCs Destroyed . | . . . . . Combat | -11 -10 -10 -10 -8 -------- Run | Yrd Mat Min Sub Mat Hostile Shots Fired 538 | . 86 46 61 345 Missed 150 | . 20 16 14 100 Damage Taken 6059 | . 644 425 915 4075 Core 752 | . 54 85 57 556 Absorbed by Shields . | . . . . . Redirected to Shielding 133 | . . . . 133 Core Remaining (%) 60 | 100 . . 21 . Volleys Fired 345 | 15 112 25 43 150 Largest 2 | 2 2 2 2 2 Hottest 105 | 100 100 46 48 105 Shots Fired 645 | 30 218 43 78 276 Gun 537 | 30 213 39 77 178 Cannon 98 | . . . . 98 Launcher 7 | . 2 4 1 . Special 3 | . 3 . . . Kinetic 402 | . 104 39 77 182 Thermal 236 | 30 112 . . 94 Explosive 7 | . 2 4 1 . Electromagnetic . | . . . . . Robot Hit Streak 27 | 3 12 5 27 18 Robot Miss Streak 7 | 3 5 2 2 7 Penetration Max . | . . . . . Secondary Targets 4 | . 1 1 2 . Max Gunslinging Chain 1 | . 1 1 1 . Shots Hit Robots 430 | 14 118 26 63 209 Core Hits 178 | 6 48 22 20 82 Critical Kills . | . . . . . Critical Parts Destroyed 2 | . . . . 2 Critical Strikes 23 | 4 7 . . 12 Burn 18 | 4 7 . . 7 Destroy 2 | . . . . 2 Blast 2 | . . . . 2 Sever 1 | . . . . 1 Melee Attacks 50 | . . . 16 34 Impact 10 | . . . 10 . Slashing 34 | . . . . 34 Piercing 6 | . . . 6 . Sneak Attacks 3 | . . . . 3 Combat Hostiles . | . . . . . Follow-up Attacks 2 | . . . . 2 Damage Inflicted 8002 | 147 1560 597 1036 4662 Guns 4974 | 147 1320 406 884 2217 Cannons 1466 | . . . . 1466 Explosions 559 | . 216 191 152 . Melee 953 | . . . . 953 Ramming 26 | . . . . 26 Kinetic 4269 | . 628 406 884 2351 Thermal 2195 | 147 716 . . 1332 Explosive 559 | . 216 191 152 . Electromagnetic . | . . . . . Impact . | . . . . . Slashing 953 | . . . . 953 Piercing . | . . . . . Highest Corruption 5 | . . . . 5 Average Corruption 5 | . . . . 5 Corruption Purged . | . . . . . Corruption Blocked . | . . . . . Effects 25 | . . . . 25 Message Errors 4 | . . . . 4 Matter Fused 6 | . . . . 6 Heat Flow Errors 2 | . . . . 2 Energy Discharges 1 | . . . . 1 Data Loss (minor) 5 | . . . . 5 Data Loss (major) 1 | . . . . 1 Alerts 1 | . . . . 1 Weapon Failures 5 | . . . . 5 Overload Shots . | . . . . . Overflow Damage 70 | . 7 . 22 41 Projectiles 34 | . 7 . . 27 Explosions 22 | . . . 22 . Melee 14 | . . . . 14 Knockbacks 13 | . . . . 13 Impact . | . . . . . Kinetic 12 | . . . . 12 Secondary 1 | . . . . 1 Self-Inflicted Damage . | . . . . . Shots . | . . . . . Rammed 4 | . . . . 4 Targets Rammed 5 | . . . . 5 Kicked . | . . . . . Crushed 1 | . . . . 1 Highest Temperature 419 | 117 252 . . 419 Average Temperature 90 | 54 86 . . 106 Received Heat Transfer 2253 | . 207 93 225 1728 Effects 1 | . . . . 1 Interference 1 | . . . . 1 Siege Activations . | . . . . . Robots Corrupted . | . . . . . Combat Hostiles . | . . . . . Parts Fried . | . . . . . Impact Corruptions . | . . . . . Robots Melted . | . . . . . Combat Hostiles . | . . . . . Parts Melted 13 | 2 8 . 1 2 Heat Transferred 6714 | 740 2533 . . 3441 Parts Sabotaged . | . . . . . Parts Stolen . | . . . . . Parts Stripped . | . . . . . Power Chain Reactions . | . . . . . Alert | -11 -10 -10 -10 -8 ------- Run | Yrd Mat Min Sub Mat Peak Influence 375 | 25 158 105 . 375 Initial 16 | . 16 4 . . Average 45 | 7 52 8 . 94 Maximum Alert Level 1 | . . . . 1 Low Security (%) 96 | 100 100 100 . 87 Level 1 3 | . . . . 12 Level 2 . | . . . . . Level 3 . | . . . . . Level 4 . | . . . . . Level 5 . | . . . . . High Security . | . . . . . Max Security . | . . . . . Squads Dispatched 10 | . 3 . . 7 Investigation 2 | . . . . 2 Extermination . | . . . . . Reinforcement 8 | . 3 . . 5 Assault . | . . . . . Garrison . | . . . . . Intercept . | . . . . . Searches Triggered . | . . . . . Construction Impeded 1 | . . . . 1 Haulers Reinforced . | . . . . . Active Scanning Responses . | . . . . . Cargo Convoy Interrupts . | . . . . . Stealth | -11 -10 -10 -10 -8 --------- Run | Yrd Mat Min Sub Mat Distress Signals 7 | . 3 . . 4 Communications Jammed . | . . . . . Distress Signals . | . . . . . Times Spotted 114 | . 32 17 11 54 Peak Tracking Total 10 | . 4 10 3 7 Tactical Retreats 2 | . 1 . . 1 Traps | -11 -10 -10 -10 -8 ------- Run | Yrd Mat Min Sub Mat Traps Triggered 6 | . . . . 6 Indirectly . | . . . . . Trap Hack Attempts . | . . . . . Triggered . | . . . . . Disarmed . | . . . . . Reprogrammed . | . . . . . Reused . | . . . . . Traps Extracted . | . . . . . Installed . | . . . . . Triggered 1 | . . . 1 . Machines | -11 -10 -10 -10 -8 ---------- Run | Yrd Mat Min Sub Mat Machines Disabled . | . . . . . Max in Single Turn . | . . . . . Machines Repaired . | . . . . . Machines Dismantled . | . . . . . Machines Sabotaged . | . . . . . Overloaded Fab Kills . | . . . . . Hacking | -11 -10 -10 -10 -8 --------- Run | Yrd Mat Min Sub Mat Machines Accessed 10 | . 6 . . 4 Terminals 7 | . 4 . . 3 Fabricators . | . . . . . Repair Stations . | . . . . . Recycling Units 2 | . 2 . . . Scanalyzers . | . . . . . Garrison Access 1 | . . . . 1 Total Hacks 19 | . 8 . . 11 Successful 11 | . 7 . . 4 Failed 8 | . 1 . . 7 Catastrophic . | . . . . . Database Lockouts . | . . . . . Manual 14 | . 6 . . 8 Terminals 14 | . 6 . . 8 Fabricators . | . . . . . Repair Stations . | . . . . . Recycling Units 2 | . 2 . . . Scanalyzers . | . . . . . Garrison Access 3 | . . . . 3 Terminal Hacks 2 | . 1 . . 1 Branch Access Points 1 | . 1 . . . Terminal Index 1 | . . . . 1 Fabricator Hacks . | . . . . . Repair Station Hacks . | . . . . . Recycling Unit Hacks 2 | . 2 . . . Retrieve Components 2 | . 2 . . . Scanalyzer . | . . . . . Garrison Access Hacks . | . . . . . Unauthorized Hacks 7 | . 4 . . 3 Terminals 7 | . 4 . . 3 Botnet 7 | . 4 . . 3 Fabricators . | . . . . . Repair Stations . | . . . . . Recycling Units . | . . . . . Scanalyzers . | . . . . . Garrison Access . | . . . . . Data Cores Recovered . | . . . . . Used . | . . . . . Hacking Detections 7 | . 4 . . 3 Full Trace Events 1 | . . . . 1 Feedback Events . | . . . . . Feedback Blocked . | . . . . . Robot Schematics Acquired . | . . . . . Robots Built . | . . . . . Authchips . | . . . . . Time . | . . . . . Total Robot Build Rating . | . . . . . Part Schematics Acquired . | . . . . . Parts Built . | . . . . . Authchips . | . . . . . Time . | . . . . . Total Part Build Rating . | . . . . . Parts Repaired . | . . . . . Time . | . . . . . Parts Recycled . | . . . . . Recycled Matter . | . . . . . Retrieved Matter . | . . . . . Retrieved Components 12 | . 12 . . . Parts Scanalyzed . | . . . . . Part Schematics Acquired . | . . . . . Parts Damaged . | . . . . . Bothacking | -11 -10 -10 -10 -8 ------------ Run | Yrd Mat Min Sub Mat Used RIF Installer . | . . . . . Robots Hacked . | . . . . . Non-combat . | . . . . . Combat . | . . . . . Robot Hacks Applied . | . . . . . Relay Couplers Released . | . . . . . Fabnet Peak Effective % . | . . . . . Robots Rewired . | . . . . . Allies Hacked . | . . . . . Hacks Repelled . | . . . . . Allies | -11 -10 -10 -10 -8 -------- Run | Yrd Mat Min Sub Mat Total Allies . | . . . . . Largest Group . | . . . . . Highest-Rated Group . | . . . . . Highest-Rated Ally . | . . . . . Total Orders . | . . . . . Ally Attacks . | . . . . . Total Damage . | . . . . . Kills . | . . . . . Allies Corrupted . | . . . . . Allies Melted . | . . . . . Intel | -11 -10 -10 -10 -8 ------- Run | Yrd Mat Min Sub Mat Robot Analysis Total . | . . . . . Derelict Logs Recovered 3 | . . 3 . . Drone Launches . | . . . . . Drone Recoveries . | . . . . . Exploration | -11 -10 -10 -10 -8 ------------- Run | Yrd Mat Min Sub Mat Turns Passed 10485 | 132 2597 3258 2288 2210 Spaces Moved 2953 | 46 723 971 632 581 Core 4 | 3 . . . 1 Treads 2945 | 43 723 967 632 580 Legs . | . . . . . Wheels . | . . . . . Hover 4 | . . 4 . . Flight . | . . . . . Fastest Speed 50 | 50 160 287 320 240 Average Speed 309 | 152 305 326 333 271 Slowest Speed 1550 | 160 480 480 340 1550 Overloaded Moves . | . . . . . Propulsion Burnouts . | . . . . . Robots Hopped . | . . . . . Cave-ins Triggered . | . . . . . Exploration Rate (%) 58 | 5 96 100 44 49 Regions Visited 4 Branch Regions 2 Pre-discovered Areas 1 | . . 1 . . Known Exits Taken 2 | . 1 1 . . Unknown Exits Taken 2 | 1 . . 1 . Scrap Searched 9 | . . 1 8 . Spaces Dug 31 | . 2 16 13 . Terrain Destroyed 80 | . 11 30 13 26 Melee . | . . . . . Projectile 28 | . 2 . . 26 AOE 52 | . 9 30 13 . Terrain Rammed . | . . . . . Walls Destroyed . | . . . . . Machines Disabled . | . . . . . Actions | -11 -10 -10 -10 -8 --------- Run | Yrd Mat Min Sub Mat Total 3625 | 75 905 1033 724 888 Wait 20 | . 4 . 4 12 Move 2949 | 45 722 970 631 581 Hop . | . . . . . Pick Up 100 | 7 36 17 7 33 Fast Attach 20 | 5 . . . 15 Attach 38 | 2 4 2 4 26 Detach 2 | . . . . 2 Swap 44 | 1 12 4 15 12 Drop 55 | . 15 15 4 21 Fire 345 | 15 112 25 43 150 Melee 47 | . . . 16 31 Ram . | . . . . . Kick . | . . . . . Crush 5 | . . . . 5 Escape Stasis . | . . . . . Rewire . | . . . . . Trap . | . . . . . Miscellaneous . | . . . . . Route ------- -11/Scrapyard -10/Materials (discovered 6 exits: [*Mat x3] / *Min x2 / Sub) -10/Mines (discovered 3 exits: [*Mat x2] / *Sub) -10/Subcaves (discovered 2 exits: *Mat x2) -8/Materials (discovered 1 exit: [*Fac]) History --------- Turn | Location | Event 36 | -11/Scrapyard | Discovered new exit (range 15) 133 | -11/Scrapyard | Entered Materials 312 | -10/Materials | Build established: Mutant 490 | -10/Materials | Discovered new exit (range 16) 709 | -10/Materials | Discovered new exit (range 10) 851 | -10/Materials | Discovered new exit (range 9) 1449 | -10/Materials | Discovered new exit (range 11) 1497 | -10/Materials | Discovered new exit (range 12) 1844 | -10/Materials | Identified exit to Mines 2074 | -10/Materials | Discovered new exit (range 15) 2730 | -10/Materials | Entered Mines 2731 | -10/Mines | Learned location of Storage (-7) 2857 | -10/Mines | Discovered new exit (range 7) 2895 | -10/Mines | Identified exit to Subcaves 2911 | -10/Mines | Learned Materials garrison access intel 3187 | -10/Mines | Received a Rocket Launcher from a helpful Derelict 3293 | -10/Mines | Assembled infested the area 3298 | -10/Mines | Assisted by a Guerilla fighting off Assembled 3330 | -10/Mines | Discovered new exit (range 9) 3986 | -10/Mines | Learned Materials terminal intel 4324 | -10/Mines | Core integrity fell below 50% 5988 | -10/Mines | Entered Subcaves 6083 | -10/Subcaves | Shifting Twisted Machinery released Flamer 6186 | -10/Subcaves | Shifting Twisted Machinery released Mak. Light Armor Plating 7223 | -10/Subcaves | Discovered new exit (range 10) 8160 | -10/Subcaves | Discovered new exit (range 7) 8225 | -10/Subcaves | Shifting Twisted Machinery released Battle Cannon 8276 | -10/Subcaves | Entered Materials 8276 | -8/Materials | Evolved 4 slots: Propulsion x2, Utility x2 8277 | -8/Materials | Loaded intel: 12 terminal locations 8278 | -8/Materials | Loaded intel: 1 garrison access location 8648 | -8/Materials | Discovered new exit (range 13) 9066 | -8/Materials | Lost 12 parts (2p5n3u2w) 10317 | -8/Materials | Core integrity fell below 50% 10384 | -8/Materials | Core integrity fell below 20% 10407 | -8/Materials | Destroyed 7 combat bots 10421 | -8/Materials | Lost 6 parts (1p4n1u) 10486 | -8/Materials | Destroyed by G-47 Trooper with Particle Gun Last Messages --------------- 10436_ Lgt. Treads destroyed. 10440_ H-61 Shepherd calls for reinforcements. 10440_ ALERT: Hostile activity reported, dispatching reinforcements to area. 10440_ Penetrated by Slug. 10445_ Lgt. Nuclear Core destroyed. 10448_ System corrupted: Prc. Beam Rifle failed to cycle. 10449_ Hrd. Light Armor Plating destroyed. 10451_ Slug penetrates U-05 Engineer. 10451_ U-05 Engineer destroyed. 10460_ Critical hit (Burn: +37). 10461_ Lgt. Treads destroyed. 10463_ U-05 Engineer builds a Wall. 10466_ Lgt. Treads destroyed. 10468_ U-05 Engineer destroyed. 10470_ Acquired 98 matter. 10472_ Lgt. Treads destroyed. 10474_ Lgt. Nuclear Core destroyed. 10480_ System corrupted: Component data lost. Map ----- +----------------------------------------------------+ | | | | | | | | | | | ?????????????????????????????????????????????????? | | ?????????????????????????????????????????????????? | | ?????????????????????????????????????????????????? | | ?????????????????????????????????????????????????? | | ?????????????????????????????????????????????????? | | ?????????????????????????????????????????????????? | | ?????????????????????????????????????????????????? | | ?????????????????????????????????????????????????? | | ?????????????????????????????????????????????????? | | ??????????????????????##?????????????????????????? | | ??????????????????????! ????????? ??????????????? | | ?????????????????????? ????#??? ??????????????? | | ?????????""???????????! "?" #?? ?????????"T"???? | | ?????????"T??????????? """ #?! ??????????"""???? | | ?????????""??????????? """ # ?????????????????? | | ???????????????#?????? # =??????????????????? | | ??????????????## ########+######+#"# ??????????? | | ??????????????# *=*%!![*%%wg==!%! % /?????????? | | ??????????????# =*!!%[=*!!!=!H%* ?????????? | | ??????????????# !!%!= %g[*[%== ?????????? | | ??????????????# ###;%%%@######"#???????????????? | | ???????????????????# #[[[##??????????????????????? | | ???????????????????#?# %[#???????????????????????? | | ????? ??????????????#![!#???????????????????????? | | ????? #?????????????#!**#???????????????????????? | | ????? #?????????????#[ %#???????????????????????? | | ????? #?????????????# /=#???????????????????????? | | ????# #?????????????# ##??????????????????????? | | ????# #????? ???????# ####????????????????????? | | ????# ##### ???????# % !##???????????????????? | | ????# ????????# !#???????????????????? | | ##### ??????????# [[[ !#???????????????????? | | ]]==# ???????????#[ [ !#???????????????????? | | ]]==# ????????????#[= % !#???????????????????? | | # ####??????????#*=%! !##???????????????????? | | # #??????????#=%[####????????????????????? | | = ##?????????#%!|#???????????????????????? | | *% % +?????????# !=+???????????????????????? | | #??????????# #???????????????????????? | | #+### #??????????# #???????????????????????? | | ?#" ##??????????# #???????????????????????? | | ?## #???????????# #?"T"???????????????????? | | ##% #???????????# #?"""??????#####????????? | | ## #???????????# #??????????# #????????? | | ## #???????????# #??????????# #????????? | +----------------------------------------------------+ Best States ------------- Heat Dissipation 53 Energy Generation 14 Energy Capacity 265 Matter Stores 300 Matter Capacity 300 Sight Range 16 Terrain Scan Range 16 Terrain Scan Density 10 Armor Coverage 250 Core Shielding 20 Propulsion Shielding 33 Weapon Shielding 66 Evasion (%) 40 Targeting Accuracy 5 Recoil Reduction 4 Item Schematics ----------------- None Robot Schematics ------------------ None Fabricated ------------ Nothing Alien Tech Used ----------------- None Achievements -------------- None Challenges ------------ None Game ------ Seed HardlightUltimateInverter Manual? 0 Play Time 00:55:24 Cumulative 137.9 hours Start 2024.04.29 @ 22:20:55 End 2024.04.30 @ 14:21:34 Sessions 2 Manual Loads 0 Difficulty Rogue Special Mode None Game No. 157 Rogue 157 Adventurer 0 Explorer 0 Win Type - Total 0 Types 0/0/0/0/0/0/0/0/0 Lore% 30 Gallery% 58 Achievement% 41 Wizard Run 0 Options --------- Layout 1 ASCII 0 Keyboard 1 Movement Vi Keybinds 0 Fullscreen 1 Font 24/Smallcaps Map View 50x35 Zoom Use 0% Tactical HUD 1 Map Filters NONE Filters NONE Steam 1 RUN: 2e53fd25-ba3f-46f7-95eb-f51f1155c206